fUSD/lending_fUSD_20241122
["ID","MTS","AMOUNT","RATE_DAILY","PERIOD"]
[343053431,1732313448411,-828.72,0.00094999,2]
[343053432,1732313448421,-828.72,0.00094999,2]
[343053433,1732313448432,-432.07050502,0.00094999,2]
[343053434,1732313448443,-348.973317,0.00094999,2]
[343053435,1732313448456,-47.67617798,0.00094999,2]
[343053436,1732313448466,-332.03390574,0.00094999,2]
[343053437,1732313448477,-496.68609426,0.00094999,2]
[343053438,1732313448488,-608.20574496,0.00094999,2]
[343053439,1732313448499,-220.51425504,0.00094999,2]
[343053440,1732313448510,-828.72,0.00094999,2]
[343053441,1732313448520,-611.23004494,0.00094999,2]
[343053442,1732313448542,-217.48995506,0.00094999,2]
[343053443,1732313448552,-828.72,0.00094999,2]
[343053444,1732313448562,-828.93467854,0.00094999,2]
[343053445,1732313448572,-500.0,0.00094999,21]
[343053446,1732313448582,-500.0,0.00094999,21]
[343053447,1732313448591,-500.0,0.00094999,21]
[343053448,1732313448601,-500.0,0.00094999,21]
[343053449,1732313448610,-325.97432522,0.00094999,21]
[343053450,1732313448620,-545.16,0.00094999,120]
[343053451,1732313448631,-545.16,0.00094999,120]
[343053452,1732313448641,-545.16,0.00094999,120]
[343053453,1732313448650,-545.16,0.00094999,120]
[343053454,1732313448659,-545.16,0.00094999,120]
[343053455,1732313448669,-545.16,0.00094999,120]
[343053456,1732313448678,-545.16,0.00094999,120]
[343053457,1732313448688,-500.0,0.00094999,120]
[343053458,1732313448698,-545.16,0.00094999,120]
[343053459,1732313448709,-545.16,0.00094999,120]
[343053460,1732313448718,-500.0,0.00094999,120]
[343053461,1732313448728,-545.16,0.00094999,120]
[343053462,1732313448737,-500.0,0.00094999,120]
[343053463,1732313448747,-545.16,0.00094999,120]
[343053464,1732313448756,-500.0,0.00094999,120]
[343053465,1732313448765,-545.16,0.00094999,120]
[343053466,1732313448775,-500.0,0.00094999,120]
[343053467,1732313448784,-545.16,0.00094999,120]
[343053468,1732313448794,-500.0,0.00094999,120]
[343053469,1732313448804,-545.16,0.00094999,120]
[343053470,1732313448813,-500.0,0.00094999,120]
[343053471,1732313448822,-545.16,0.00094999,120]
[343053472,1732313448832,-500.0,0.00094999,120]
[343053473,1732313448841,-545.16,0.00094999,120]
[343053474,1732313448850,-500.0,0.00094999,120]
[343053475,1732313448860,-545.29,0.00094999,120]
[343053476,1732313448869,-500.0,0.00094999,120]
[343053477,1732313448878,-500.0,0.00094999,120]
[343053478,1732313448887,-500.0,0.00094999,120]
[343053479,1732313448897,-500.0,0.00094999,120]
[343053480,1732313448906,-500.0,0.00094999,120]
[343053481,1732313448915,-500.0,0.00094999,120]
[343053482,1732313448924,-500.0,0.00094999,120]
[343053483,1732313448934,-283.94,0.00094999,120]
[343053484,1732313448943,-500.0,0.00094999,120]
[343053485,1732313448952,-500.0,0.00094999,120]
[343053486,1732313448963,-500.0,0.00094999,120]
[343053487,1732313448973,-500.0,0.00094999,120]
[343053488,1732313448982,-500.0,0.00094999,120]
[343053489,1732313448991,-500.0,0.00094999,120]
[343053490,1732313449001,-500.0,0.00094999,120]
[343053491,1732313449010,-500.0,0.00094999,120]
[343053492,1732313449019,-500.0,0.00094999,120]
[343053493,1732313449028,-500.0,0.00094999,120]
[343053494,1732313449038,-500.0,0.00094999,120]
[343053495,1732313449048,-500.0,0.00094999,120]
[343053496,1732313449058,-500.0,0.00094999,120]
[343053497,1732313449067,-500.0,0.00094999,120]
[343053498,1732313449080,-500.0,0.00094999,120]
[343053499,1732313449090,-500.0,0.00094999,120]
[343053500,1732313449100,-534.66,0.00094999,120]
[343053501,1732313449109,-500.0,0.00094999,120]
[343053502,1732313449119,-500.0,0.00094999,120]
[343053503,1732313449128,-500.0,0.00094999,120]
[343053504,1732313449138,-500.0,0.00094999,120]
[343053505,1732313449149,-500.0,0.00094999,120]
[343053506,1732313449163,-500.0,0.00094999,120]
[343053507,1732313449172,-500.0,0.00094999,120]
[343053508,1732313449182,-500.0,0.00094999,120]
[343053509,1732313449191,-500.0,0.00094999,120]
[343053510,1732313449200,-500.0,0.00094999,120]
[343053511,1732313449211,-500.0,0.00094999,120]
[343053512,1732313449221,-500.0,0.00094999,120]
[343053513,1732313449231,-395.27014558,0.00094999,120]
[343053514,1732313449240,-500.0,0.00094999,120]
[343053515,1732313449250,-162.043063,0.00094999,120]
[343053516,1732313449345,-535.73,0.00094999,120]
[343053517,1732313449355,-535.73,0.00094999,120]
[343053518,1732313449366,-535.73,0.00094999,120]
[343053519,1732313449376,-535.73,0.00094999,120]
[343053520,1732313449386,-535.73,0.00094999,120]
[343053521,1732313449395,-535.73,0.00094999,120]
[343053522,1732313449406,-535.73,0.00094999,120]
[343053523,1732313449416,-535.73,0.00094999,120]
[343053524,1732313449426,-535.73,0.00094999,120]
[343053525,1732313449436,-535.73,0.00094999,120]
[343053526,1732313449446,-535.73,0.00094999,120]
[343053527,1732313449456,-535.73,0.00094999,120]
[343053528,1732313449466,-535.73,0.00094999,120]
[343053529,1732313449476,-535.73,0.00094999,120]
[343053530,1732313449485,-535.73,0.00094999,120]
[343053531,1732313449496,-535.73,0.00094999,120]
[343053532,1732313449505,-535.73,0.00094999,120]
[343053533,1732313449515,-535.73,0.00094999,120]
[343053534,1732313449525,-535.91,0.00094999,120]
[343053535,1732313449535,-500.0,0.00094999,120]
[343053536,1732313449544,-314.77202942,0.00094999,120]
[343053537,1732313449557,-185.22797058,0.00094999,120]
[343053538,1732313449567,-500.0,0.00094999,120]
[343053539,1732313449577,-112.27242685,0.00094999,120]
[343053540,1732313449588,-387.72757315,0.00094999,120]
[343053541,1732313449598,-500.0,0.00094999,120]
[343053542,1732313449607,-500.0,0.00094999,120]
[343053543,1732313449616,-500.0,0.00094999,120]
[343053544,1732313449625,-500.0,0.00094999,120]
[343053545,1732313449635,-500.0,0.00094999,120]
[343053546,1732313449644,-500.0,0.00094999,120]
[343053547,1732313449654,-500.0,0.00094999,120]
[343053548,1732313449663,-500.0,0.00094999,120]
[343053549,1732313449672,-272.84,0.00094999,120]
[343053550,1732313449682,-500.0,0.00094999,120]
[343053551,1732313449691,-500.0,0.00094999,120]
[343053552,1732313449700,-500.0,0.00094999,120]
[343053553,1732313449711,-500.0,0.00094999,120]
[343053554,1732313449721,-500.0,0.00094999,120]
[343053555,1732313449730,-500.0,0.00094999,120]
[343053556,1732313449739,-500.0,0.00094999,120]
[343053557,1732313449748,-500.0,0.00094999,120]
[343053558,1732313449758,-500.0,0.00094999,120]
[343053559,1732313449767,-500.0,0.00094999,120]
[343053560,1732313449776,-249.71745875,0.00094999,120]
[343053561,1732313449788,-250.28254125,0.00094999,120]
[343053562,1732313449797,-222.21935637,0.00094999,120]
[343053563,1732313449807,-210.15523598,0.00094999,120]
[343053564,1732313449817,-498.74334112,0.00094999,120]
[343053565,1732313449956,-567.5114229,0.00094999,120]
[343053566,1732313449965,-1276.41,0.00094999,120]
[343053567,1732313449974,-97.53821211,0.00094999,120]
[343053568,1732313541643,168.83,0.00041096,2]
[343053569,1732313541906,168.83,0.00046143,2]
[343053570,1732313542123,168.83,0.0005119,2]
[343053572,1732313620696,500.0,0.0005,120]
[343053573,1732313637664,620.0,0.00015,2]
[343053574,1732313675544,8175.0,0.00052001,2]
[343053575,1732313742513,500.0,0.000499,61]
[343053576,1732313743064,851.648504,0.000489,61]
[343053577,1732314337977,42060.55646972,0.00050148,120]
[343053578,1732314378417,155.5,0.00041096,2]
[343053580,1732314435137,-500.0,0.00054795,120]
[343053581,1732314435159,-500.0,0.00054795,120]
[343053582,1732314435180,-582.16274109,0.000555,15]
[343053586,1732314515542,8397.1178424,0.000476,30]
[343053587,1732314547120,-17.83725891,0.000555,15]
[343053588,1732314547151,-168.83,0.00056237,120]
[343053589,1732314547180,-14449.668,0.00060223,120]
[343053590,1732314547203,-168.83,0.00061283,120]
[343053591,1732314547227,-14209.48796109,0.000628,120]
[343053601,1732314556140,-45074.73838,0.000628,120]
[343053602,1732314561141,-40657.0812504,0.000628,120]
[343053603,1732314561165,-27785.49083791,0.00063,10]
[343053604,1732314561192,-773.32,0.0006632,30]
[343053605,1732314561214,-255.92420664,0.0006632,2]
[343053606,1732314561238,-168.83,0.0006633,120]
[343053607,1732314561261,-999.99,0.0006633,20]
[343053608,1732314561285,-3826.37,0.0006633,30]
[343053609,1732314561307,-171.2,0.0006633,30]
[343053610,1732314561329,-9999.99,0.0006633,2]
[343053611,1732314561351,-1896.1,0.0006633,2]
[343053612,1732314561373,-293.66,0.0006633,2]
[343053613,1732314561395,-290.05,0.0006633,2]
[343053614,1732314561416,-150.99,0.0006633,31]
[343053615,1732314561439,-267.17,0.0006633,30]
[343053616,1732314561465,-329.0,0.0006633,30]
[343053617,1732314561487,-3559.59,0.0006633,2]
[343053618,1732314561509,-9999.99,0.0006633,2]
[343053619,1732314561533,-29999.99,0.0006633,2]
[343053620,1732314561555,-1120.83,0.0006633,2]
[343053621,1732314561578,-150.99,0.0006633,2]
[343053622,1732314561599,-61193.90065638,0.000669,120]
[343053623,1732314561620,-2264.19685246,0.000678,120]
[343053624,1732314561644,-2000.0,0.0007,120]
[343053625,1732314561667,-168.83,0.00071377,120]
[343053626,1732314561688,-2312.71278649,0.000721,2]
[343053627,1732314561709,-655.5,0.00072504,2]
[343053628,1732314561730,-37624.3048,0.00074,120]
[343053629,1732314561752,-150.62,0.00074141,120]
[343053630,1732314561774,-250.0,0.00074499,120]
[343053631,1732314561800,-17022.10228761,0.00076324,15]
[343053632,1732314561821,-5207.4083,0.00076384,30]
[343053633,1732314561843,-300.0,0.00076423,20]
[343053634,1732314561866,-1000.0,0.00076423,30]
[343053635,1732314561889,-477.191,0.00076424,120]
[343053636,1732314561910,-168.83,0.00076424,120]
[343053637,1732314561932,-2086.06709674,0.00076995,15]
[343053638,1732314561953,-2086.06709673,0.00076995,15]
[343053639,1732314561974,-407.87,0.00077589,2]
[343053640,1732314561997,-17022.10228756,0.00078944,15]
[343053641,1732314562020,-433.34,0.00079452,120]
[343053642,1732314562042,-500.0,0.00079452,120]
[343053643,1732314562065,-407.87,0.00079853,2]
[343053644,1732314562087,-200.0,0.00081375,30]
[343053645,1732314562108,-166.15,0.0008141,2]
[343053646,1732314562129,-248.0,0.0008141,2]
[343053647,1732314562150,-170.41,0.00081434,2]
[343053648,1732314562173,-168.83,0.00081471,120]
[343053649,1732314562198,-500.0,0.00081536,2]
[343053650,1732314562220,-358.92,0.00081544,30]
[343053651,1732314562243,-17022.10228756,0.00081563,15]
[343053652,1732314562265,-23900.0,0.00081647,2]
[343053653,1732314562287,-181.64,0.00081679,2]
[343053654,1732314562309,-150.0,0.00081679,30]
[343053655,1732314562331,-250.0,0.00081711,120]
[343053656,1732314562353,-479.3,0.00081716,2]
[343053657,1732314562375,-569.11867202,0.00081717,120]
[343053658,1732314562399,-500.0,0.00081742,2]
[343053659,1732314562423,-199.88,0.00081758,120]
[343053660,1732314562444,-2751.0,0.00081909,120]
[343053661,1732314562470,-407.87,0.00082117,2]
[343053662,1732314562491,-3256.73455738,0.000822,120]
[343053663,1732314562513,-300.0,0.00083056,120]
[343053664,1732314562534,-154.472,0.00083125,120]
[343053665,1732314562558,-154.473,0.00083125,120]
[343053666,1732314562579,-3328.28,0.00083741,2]
[343053667,1732314562601,-392.7769212,0.00083873,8]
[343053668,1732314562622,-2000.0,0.00083883,120]
[343053669,1732314562649,-5279.32342003,0.00084183,15]
[343053688,1732314632817,-150.0,0.0006654,2]
[343053689,1732314632827,-1934.775,0.0007,120]
[343053690,1732314632847,-65.225,0.0007,120]
[343053691,1732314632856,-4793.77,0.00076423,120]
[343053692,1732314632865,-500.0,0.00079452,120]
[343053693,1732314632874,-500.0,0.00079452,120]
[343053694,1732314632884,-11742.77886753,0.00084183,15]
[343053695,1732314632892,-407.87,0.0008438,2]
[343053696,1732314632901,-300.0,0.00084426,120]
[343053697,1732314632911,-155.44,0.00084547,120]
[343053698,1732314632920,-477.192,0.00084818,120]
[343053699,1732314632930,-152.836549,0.00084931,120]
[343053700,1732314632939,-152.836549,0.00084931,120]
[343053701,1732314632948,-152.836549,0.00084931,120]
[343053702,1732314632959,-152.836549,0.00085878,120]
[343053703,1732314632969,-713.75,0.00085957,120]
[343053704,1732314632979,-168.83,0.00086518,120]
[343053705,1732314632988,-407.87,0.00086644,2]
[343053706,1732314632998,-150.62,0.00086684,120]
[343053707,1732314633007,-17022.10228756,0.00086802,15]
[343053708,1732314633017,-250.0,0.00087195,120]
[343053709,1732314633027,-380.6,0.00087514,11]
[343053710,1732314633036,-2356.6615272,0.00087521,10]
[343053711,1732314633045,-500.0,0.0008753,120]
[343053712,1732314633058,-846.88,0.0008753,120]
[343053713,1732314633067,-463.46995066,0.0008753,120]
[343053714,1732314633077,-100000.0,0.00087531,30]
[343053715,1732314633086,-500.0,0.0008773,120]
[343053716,1732314633095,-500.0,0.0008773,120]
[343053717,1732314633105,-500.0,0.0008773,120]
[343053718,1732314633114,-500.0,0.0008773,120]
[343053719,1732314633123,-500.0,0.0008773,120]
[343053720,1732314633133,-500.0,0.0008783,120]
[343053721,1732314633143,-500.0,0.0008783,120]
[343053722,1732314633152,-500.0,0.0008783,120]
[343053723,1732314633162,-500.0,0.0008783,120]
[343053724,1732314633171,-453.7,0.0008783,120]
[343053725,1732314633181,-500.0,0.0008783,120]
[343053726,1732314633191,-500.0,0.0008783,120]
[343053727,1732314633201,-500.0,0.0008783,120]
[343053728,1732314633211,-568.76,0.0008783,120]
[343053729,1732314633221,-532.15117108,0.0008783,120]
[343053730,1732314633231,-500.0,0.0008783,120]
[343053731,1732314633240,-500.0,0.0008783,120]
[343053732,1732314633250,-500.0,0.0008783,120]
[343053733,1732314633260,-500.0,0.0008783,120]
[343053734,1732314633270,-500.0,0.0008783,120]
[343053735,1732314633280,-500.0,0.0008783,120]
[343053736,1732314633290,-500.0,0.0008783,120]
[343053737,1732314633300,-500.0,0.0008783,120]
[343053738,1732314633309,-392.7769212,0.00088577,10]
[343053739,1732314633319,-500.0,0.00088586,21]
[343053740,1732314633328,-500.0,0.00088586,120]
[343053741,1732314633338,-500.0,0.00088586,120]
[343053742,1732314633348,-5046.6244,0.00088587,120]
[343053743,1732314633357,-1023.1456,0.00088587,31]
[343053744,1732314633367,-392.7769212,0.00088676,10]
[343053745,1732314633378,-500.0,0.00088684,2]
[343053746,1732314633388,-500.0,0.00088684,120]
[343053747,1732314633398,-500.0,0.00088684,120]
[343053748,1732314633408,-361.68693161,0.00088684,120]
[343053749,1732314633418,-500.0,0.00088686,120]
[343053750,1732314633428,-3102.0,0.000888,12]
[343053751,1732314633438,-392.7769212,0.00088848,10]
[343053752,1732314633448,-500.0,0.00088857,120]
[343053753,1732314633459,-500.0,0.00088885,120]
[343053754,1732314633470,-496.91159,0.00088885,120]
[343053755,1732314633481,-500.0,0.00088885,120]
[343053756,1732314633490,-500.0,0.00088885,120]
[343053757,1732314633501,-500.0,0.00088885,120]
[343053758,1732314633511,-407.87,0.00088908,2]
[343053759,1732314633521,-500.0,0.00089072,120]
[343053760,1732314633532,-500.0,0.00089072,120]
[343053761,1732314633542,-500.0,0.00089072,120]
[343053762,1732314633554,-500.0,0.00089072,120]
[343053763,1732314633565,-500.0,0.00089072,120]
[343053764,1732314633575,-500.0,0.00089072,120]
[343053765,1732314633585,-500.0,0.00089072,120]
[343053766,1732314633595,-568.76,0.00089072,120]
[343053767,1732314633604,-348.27000937,0.00089072,120]
[343053768,1732314633614,-500.0,0.00089072,120]
[343053769,1732314633623,-17022.10228756,0.00089422,15]
[343053770,1732314633633,-500.0,0.000896,120]
[343053771,1732314633643,-154.57631951,0.000899,120]
[343053772,1732314633653,-154.57631951,0.000899,120]
[343053773,1732314633663,-154.57631951,0.000899,120]
[343053774,1732314633672,-154.57631951,0.000899,120]
[343053775,1732314633682,-301.37632783,0.000899,28]
[343053776,1732314633692,-1000.0,0.00089976,120]
[343053777,1732314633702,-392.7769212,0.00089989,11]
[343053778,1732314633713,-7808.17104288,0.0008999,10]
[343053779,1732314633723,-500.0,0.00089998,2]
[343053780,1732314633743,-500.0,0.00089998,120]
[343053781,1732314633753,-90847.16919,0.00089999,2]
[343053782,1732314633763,-10000.0,0.0009,120]
[343053783,1732314633772,-10000.0,0.0009,120]
[343053784,1732314633783,-2481.0,0.000902,107]
[343053785,1732314633792,-7808.17104288,0.00090227,11]
[343053786,1732314633802,-418.34726902,0.00090256,81]
[343053787,1732314633812,-500.0,0.00090356,120]
[343053788,1732314633822,-500.0,0.00090356,120]
[343053789,1732314633832,-500.0,0.00090356,120]
[343053790,1732314633842,-500.0,0.00090356,120]
[343053791,1732314633852,-200.0,0.00090364,120]
[343053792,1732314633861,-301.37632782,0.00091043,28]
[343053793,1732314633871,-407.87,0.00091172,2]
[343053794,1732314633881,-168.83,0.00091565,120]
[343053795,1732314633891,-418.347269,0.00091578,83]
[343053796,1732314633901,-7808.17104288,0.00091703,11]
[343053797,1732314633911,-154.57631951,0.00091804,120]
[343053798,1732314633921,-852.24434746,0.000919,120]
[343053799,1732314633930,-7808.17104288,0.0009198,11]
[343053800,1732314633940,-1016.91131192,0.00091981,63]
[343053801,1732314633950,-15616.3420858,0.0009199,11]
[343053802,1732314633961,-317.06246572,0.0009199,2]
[343053803,1732314633971,-500.0,0.00091999,120]
[343053804,1732314633980,-846.88,0.00091999,120]
[343053805,1732314633990,-24569.25875712,0.00092,120]
[343053806,1732314634000,-2384.78623897,0.00092,30]
[343053807,1732314634010,-17022.10228756,0.00092041,15]
[343053808,1732314634020,-15616.3420858,0.0009208,11]
[343053809,1732314634030,-561.0,0.0009209,120]
[343053810,1732314634040,-5942.0,0.0009209,120]
[343053811,1732314634050,-249.019,0.0009209,120]
[343053812,1732314634060,-632.0,0.0009209,120]
[343053813,1732314634069,-1248.818,0.0009209,120]
[343053814,1732314634079,-150.0,0.00092178,60]
[343053815,1732314634088,-150.0,0.00092178,60]
[343053816,1732314634098,-150.0,0.00092178,60]
[343053817,1732314634107,-150.0,0.00092178,60]
[343053818,1732314634117,-150.0,0.00092178,60]
[343053819,1732314634127,-301.37632782,0.00092186,28]
[343053820,1732314634137,-2500.0,0.000929,120]
[343053821,1732314634147,-153.87976542,0.000929,120]
[343053822,1732314634157,-418.347269,0.000929,84]
[343053823,1732314634166,-500.0,0.0009298,2]
[343053824,1732314634176,-78081.7104288,0.0009298,11]
[343053825,1732314634186,-150.98,0.0009298,120]
[343053826,1732314634196,-109314.3946,0.0009299,11]
[343053827,1732314634208,-1000.0,0.00092999,30]
[343053828,1732314634219,-1000.0,0.00092999,30]
[343053829,1732314634229,-500.0,0.00092999,21]
[343053830,1732314634239,-500.0,0.00092999,120]
[343053831,1732314634249,-500.0,0.00092999,120]
[343053832,1732314634258,-500.0,0.00092999,120]
[343053833,1732314634268,-162.043063,0.00092999,120]
[343053834,1732314634278,-500.0,0.00092999,2]
[343053835,1732314634288,-500.0,0.00092999,120]
[343053836,1732314634297,-314.77202942,0.00092999,120]
[343053837,1732314634307,-846.88,0.00092999,120]
[343053838,1732314634317,-846.88,0.00092999,120]
[343053839,1732314634327,-500.0,0.00092999,2]
[343053840,1732314634338,-500.0,0.00092999,2]
[343053841,1732314634348,-50721.89999902,0.00093,120]
[343053842,1732314634358,-295998.0,0.00093,120]
[343053843,1732314634368,-7496.78011295,0.00093,120]
[343053844,1732314634379,-500.0,0.00093004,21]
[343053845,1732314634389,-500.0,0.00093004,120]
[343053846,1732314634399,-166.82955001,0.00093112,81]
[343053847,1732314634414,-477.192,0.00093212,120]
[343053848,1732314634423,-3982.73726843,0.000933,120]
[343053849,1732314634434,-301.37632782,0.00093329,28]
[343053850,1732314634445,-407.87,0.00093436,2]
[343053851,1732314634456,-50000.0,0.000935,120]
[343053852,1732314634468,-500.0,0.00093669,2]
[343053853,1732314634479,-500.0,0.00093669,120]
[343053854,1732314634632,-2500.0,0.000939,120]
[343053855,1732314634643,-500.0,0.00093988,120]
[343053856,1732314634653,-500.0,0.00093988,120]
[343053857,1732314634663,-500.0,0.00093988,120]
[343053858,1732314634672,-500.0,0.00093988,120]
[343053859,1732314634681,-500.0,0.00093989,120]
[343053860,1732314634690,-500.0,0.00093989,120]
[343053861,1732314634701,-206.95017721,0.00093989,120]
[343053862,1732314634710,-278.75,0.00093989,120]
[343053863,1732314634720,-500.0,0.00093989,120]
[343053864,1732314634729,-500.0,0.00093989,120]
[343053865,1732314634739,-500.0,0.00093989,120]
[343053866,1732314634748,-568.76,0.00093989,120]
[343053867,1732314634757,-500.0,0.00093989,120]
[343053868,1732314634767,-500.0,0.00093999,120]
[343053869,1732314634778,-500.0,0.00093999,120]
[343053870,1732314634788,-500.0,0.00093999,120]
[343053871,1732314634798,-500.0,0.00093999,120]
[343053872,1732314634808,-500.0,0.00093999,120]
[343053873,1732314634817,-500.0,0.00093999,120]
[343053874,1732314634826,-531.6309218,0.00093999,120]
[343053875,1732314634836,-500.0,0.00093999,120]
[343053876,1732314634845,-500.0,0.00093999,120]
[343053877,1732314634854,-1000.0,0.00093999,30]
[343053878,1732314634864,-500.0,0.00093999,120]
[343053879,1732314634873,-500.0,0.00093999,120]
[343053880,1732314634882,-500.0,0.00093999,120]
[343053881,1732314634891,-500.0,0.00093999,120]
[343053882,1732314634900,-500.0,0.00093999,120]
[343053883,1732314634909,-846.88,0.00093999,120]
[343053884,1732314634918,-500.0,0.00093999,120]
[343053885,1732314634928,-500.0,0.00093999,120]
[343053886,1732314634938,-50000.0,0.00094,85]
[343053887,1732314634948,-6238.40696675,0.00094,120]
[343053888,1732314634959,-44115.69,0.00094,30]
[343053889,1732314634968,-3000.0,0.00094,120]
[343053890,1732314634979,-3000.0,0.0009405,120]
[343053891,1732314634990,-455.34,0.000942,120]
[343053892,1732314635001,-301.37632782,0.00094471,28]
[343053893,1732314635012,-500.0,0.00094499,2]
[343053894,1732314635023,-50000.0,0.000945,120]
[343053895,1732314635037,-153.8797654,0.0009465,120]
[343053896,1732314635048,-17022.10228756,0.00094661,15]
[343053897,1732314635058,-500.0,0.000948,120]
[343053898,1732314635068,-3000.0,0.000948,120]
[343053899,1732314635077,-170.83779692,0.000949,8]
[343053900,1732314635087,-454.25187728,0.000949,83]
[343053901,1732314635096,-2500.0,0.000949,120]
[343053902,1732314635105,-432.22,0.000949,120]
[343053903,1732314635115,-55555.0,0.000949,120]
[343053904,1732314635124,-154.57631951,0.000949,120]
[343053905,1732314635133,-26014.70318986,0.000949,2]
[343053906,1732314635142,-151.55054528,0.000949,2]
[343053907,1732314635151,-500.0,0.00094979,21]
[343053908,1732314635160,-500.0,0.00094979,120]
[343053909,1732314635170,-375.1446336,0.00094979,2]
[343053910,1732314635179,-500.0,0.00094979,120]
[343053911,1732314635188,-500.0,0.00094988,120]
[343053912,1732314635198,-500.0,0.00094988,120]
[343053913,1732314635209,-500.0,0.00094988,120]
[343053914,1732314635219,-500.0,0.00094988,120]
[343053915,1732314635228,-568.76,0.00094988,120]
[343053916,1732314635238,-222.83238078,0.00094988,120]
[343053917,1732314635248,-500.0,0.00094988,120]
[343053918,1732314635257,-500.0,0.00094988,120]
[343053919,1732314635266,-500.0,0.00094988,120]
[343053920,1732314635275,-500.0,0.00094988,120]
[343053921,1732314635284,-500.0,0.00094989,120]
[343053922,1732314635293,-500.0,0.00094989,120]
[343053923,1732314635304,-500.0,0.00094989,120]
[343053924,1732314635314,-521.86281806,0.00094989,120]
[343053925,1732314635323,-568.76,0.00094989,120]
[343053926,1732314635333,-500.0,0.00094989,120]
[343053927,1732314635343,-500.0,0.00094989,120]
[343053928,1732314635353,-150.98,0.0009499,120]
[343053929,1732314635362,-325.97432522,0.00094998,21]
[343053930,1732314635372,-500.0,0.00094998,120]
[343053931,1732314635382,-2000.0,0.00094999,30]
[343053932,1732314635392,-200.0,0.00094999,30]
[343053933,1732314635401,-500.0,0.00094999,120]
[343053934,1732314635411,-500.0,0.00094999,120]
[343053935,1732314635420,-370.48317782,0.00094999,120]
[343053936,1732314635429,-200.0,0.00094999,30]
[343053937,1732314635439,-500.0,0.00094999,120]
[343053938,1732314635448,-500.0,0.00094999,120]
[343053939,1732314635459,-500.0,0.00094999,120]
[343053940,1732314635471,-500.0,0.00094999,120]
[343053941,1732314635481,-500.0,0.00094999,120]
[343053942,1732314635490,-500.0,0.00094999,120]
[343053943,1732314635500,-601.24,0.00094999,120]
[343053944,1732314635510,-500.0,0.00094999,120]
[343053945,1732314635519,-500.0,0.00094999,120]
[343053946,1732314635529,-500.0,0.00094999,120]
[343053947,1732314635541,-500.0,0.00094999,120]
[343053948,1732314635551,-500.0,0.00094999,120]
[343053950,1732314635561,-500.0,0.00094999,120]
[343053952,1732314635570,-500.0,0.00094999,120]
[343053954,1732314635579,-500.0,0.00094999,120]
[343053956,1732314635588,-500.0,0.00094999,120]
[343053958,1732314635597,-397.04374192,0.00094999,120]
[343053960,1732314635607,-500.0,0.00094999,120]
[343053961,1732314635617,-568.76,0.00094999,120]
[343053962,1732314635626,-568.76,0.00094999,120]
[343053963,1732314635636,-568.76,0.00094999,120]
[343053964,1732314635645,-568.76,0.00094999,120]
[343053965,1732314635655,-568.76,0.00094999,120]
[343053966,1732314635665,-568.76,0.00094999,120]
[343053967,1732314635675,-568.76,0.00094999,120]
[343053968,1732314635684,-568.76,0.00094999,120]